bitfinex/quotes_ETHUSD_20250404
["timestamp","ask_amount","ask_price","bid_price","bid_amount"]
[1743762268475,9.701,1798.9,1798.8,5.55926]
[1743762268655,3.0,1799.2,1799.1,11.11643]
[1743762268854,0.5619,1799.4,1799.2,5.55782]
[1743762269188,0.5619,1799.4,1798.8,6.35397]
[1743762269387,0.5619,1799.4,1798.9,5.55895]
[1743762269589,3.5619,1799.4,1798.7,5.55938]
[1743762269789,0.90619,1799.3,1798.4,0.8002]
[1743762269941,0.90619,1799.3,1798.7,5.55942]
[1743762270150,0.55,1799.5,1799.1,5.55814]
[1743762270381,6.6219,1799.7,1799.0,6.35114]
[1743762270696,6.11,1799.9,1799.8,5.55617]
[1743762270898,0.05,1799.9,1799.8,5.55617]
[1743762271195,0.05,1799.9,1799.6,5.55674]
[1743762271196,6.06,1800.7,1800.5,5.55384]
[1743762271378,0.606,1800.7,1800.1,0.814]
[1743762271588,9.81177865,1800.9,1799.7,0.814]
[1743762271748,9.81177865,1800.9,1799.2,3.13987865]
[1743762271749,0.5619,1800.1,1799.2,0.814]
[1743762271950,9.196,1800.0,1799.8,5.55605]
[1743762272149,9.196,1800.0,1799.8,5.55596]
[1743762272495,3.0,1800.3,1799.8,5.55596]
[1743762272782,3.0,1800.3,1799.3,5.55771]
[1743762272783,3.0,1800.1,1799.4,5.55722]
[1743762273077,3.0,1800.1,1799.6,5.55661]
[1743762273282,3.0,1799.7,1799.0,5.55864]
[1743762273457,3.0,1799.5,1799.0,5.55843]
[1743762273661,3.0,1799.5,1799.1,5.55819]
[1743762273850,9.476,1799.6,1799.2,5.55782]
[1743762274180,3.0,1799.9,1799.4,5.55735]
[1743762274382,9.7249,1800.0,1799.8,5.55617]
[1743762274683,0.3,1800.2,1800.0,5.55541]
[1743762274857,0.5619,1800.4,1800.0,5.55541]
[1743762275184,3.0,1800.2,1799.4,5.55716]
[1743762275382,5.55574,1800.0,1799.3,6.38615]
[1743762275560,17.71354,1800.1,1799.4,5.5572]
[1743762275900,12.158,1800.1,1799.5,5.55693]
[1743762276197,0.55,1799.7,1799.0,5.55844]
[1743762276404,3.0,1799.6,1799.1,5.55831]
[1743762276701,3.0,1799.6,1799.2,5.55786]
[1743762276907,3.0,1799.6,1799.1,5.55802]
[1743762277108,3.0,1799.6,1799.3,5.55768]
[1743762277275,3.0,1799.6,1798.9,0.7796]
[1743762277469,3.0,1799.6,1798.5,5.55997]
[1743762277470,3.0,1799.4,1799.1,5.55806]
[1743762277682,3.0,1799.4,1799.3,5.55771]
[1743762277883,3.0,1799.4,1798.9,5.55876]
[1743762278090,0.3,1799.3,1798.7,5.55943]
[1743762278489,3.0,1799.2,1798.7,5.55943]
[1743762278673,0.3,1799.3,1798.7,5.55941]
[1743762279112,3.0,1798.9,1798.2,5.561]
[1743762279275,3.0,1798.7,1798.2,5.561]
[1743762279475,0.5619,1798.4,1798.1,0.05]
[1743762279675,0.5619,1798.4,1798.3,5.5608]
[1743762279897,0.5619,1798.4,1798.2,5.56097]
[1743762280098,0.5619,1798.4,1798.1,0.05]
[1743762280406,9.76177865,1798.7,1798.1,0.05]
[1743762280605,6.6219,1798.7,1798.1,0.05]
[1743762280905,3.0,1798.6,1798.1,0.05]
[1743762281301,6.6219,1798.7,1798.3,5.5605]
[1743762281476,9.76177865,1799.0,1798.4,0.05560834]
[1743762281677,6.6219,1799.0,1798.8,5.55914]
[1743762281926,3.0,1798.9,1798.8,5.55914]
[1743762282219,3.0,1798.9,1798.5,5.56018]
[1743762282373,3.0,1798.9,1798.5,11.12036]
[1743762282576,6.6219,1799.0,1798.5,5.56013]
[1743762283086,9.76177865,1799.0,1798.2,0.7918]
[1743762283329,5.55924,1798.9,1798.2,5.56088]
[1743762283613,3.0,1798.9,1798.6,5.55961]
[1743762283826,3.0,1798.9,1798.5,6.34964]
[1743762283990,3.0,1798.9,1798.4,5.56049]
[1743762284190,3.0,1798.9,1798.5,5.56009]
[1743762284423,0.8619,1798.8,1798.3,11.12112]
[1743762284623,0.8619,1798.8,1798.2,11.12202]
[1743762284827,3.0,1798.9,1798.6,5.55979]
[1743762285013,3.0,1798.9,1798.5,5.56017]
[1743762285341,15.095,1799.0,1798.5,5.55995]
[1743762285852,3.0,1798.9,1798.5,5.56006]
[1743762286340,15.095,1799.0,1798.6,5.55959]
[1743762286539,3.0,1798.9,1798.6,5.55959]
[1743762286706,0.55,1798.8,1798.3,5.56078]
[1743762286895,18.23487865,1799.0,1798.2,0.05560754]
[1743762287096,0.55,1798.8,1798.3,5.56068]
[1743762287582,9.06,1798.7,1798.1,0.8342]
[1743762287713,3.0,1798.4,1798.1,0.05]
[1743762287892,18.07,1798.4,1798.1,0.05]
[1743762288093,0.55,1798.3,1798.1,0.05]
[1743762288341,3.55,1798.2,1798.1,0.05]
[1743762288744,15.73301,1798.2,1798.1,0.05]
[1743762288923,42.83092683,1798.2,1798.1,0.05]
[1743762289234,46.25899279,1798.2,1798.1,0.05]
[1743762289436,37.36388279,1798.2,1798.1,0.05]
[1743762289608,35.83506596,1798.2,1798.1,5.61142]
[1743762289802,35.741,1798.2,1798.1,5.61142]
[1743762290004,35.741,1798.2,1798.1,0.05]
[1743762290217,41.30211,1798.2,1798.1,0.05]
[1743762290534,13.4109,1798.2,1798.1,0.05]
[1743762290737,25.43899579,1798.2,1798.1,0.05]
[1743762290910,25.53306175,1798.2,1798.1,0.05]
[1743762291113,25.53306175,1798.2,1797.3,5.56371]
[1743762291114,8.89622,1797.9,1797.3,5.56371]
[1743762291338,0.55,1797.6,1796.9,5.56512]
[1743762291536,8.94,1797.5,1797.0,5.56482]
[1743762291718,8.94,1797.5,1797.4,5.56359]
[1743762292550,9.76177865,1798.3,1798.0,5.56162]
[1743762292753,9.76177865,1798.3,1797.3,5.56367]
[1743762292754,9.76177865,1798.3,1797.6,0.05562081]
[1743762293053,8.922,1798.5,1798.3,5.56067]
[1743762293230,0.5619,1798.6,1797.9,5.56197]
[1743762293556,0.5619,1798.6,1798.0,0.556197]
[1743762293850,3.5619,1798.6,1798.0,5.56162]
[1743762294054,3.5619,1798.6,1798.2,5.56091]
[1743762294254,26.691,1799.1,1798.3,0.05560956]
[1743762294441,0.5619,1799.3,1799.0,5.55863]
[1743762294865,0.5619,1799.3,1799.1,5.55822]
[1743762295163,27.2529,1799.8,1799.5,5.55694]
[1743762295321,0.42062428,1799.7,1798.9,5.55894]
[1743762295522,12.03787865,1799.6,1798.7,6.34191]
[1743762295724,8.898,1799.6,1799.2,5.55782]
[1743762296054,8.898,1799.6,1799.1,5.55833]
[1743762296259,8.898,1799.6,1799.3,5.5577]
[1743762296463,8.898,1799.6,1799.4,5.55734]
[1743762296632,27.66939519,1799.8,1799.4,11.11452]
[1743762296633,27.2529,1799.8,1799.4,11.11452]
[1743762296833,3.0,1799.7,1799.3,5.55765]
[1743762297033,27.2529,1799.8,1799.3,5.55765]
[1743762297229,0.05,1799.9,1799.4,5.5574]
[1743762299168,0.05,1800.9,1800.8,5.55308]
[1743762299363,0.05,1800.9,1800.7,5.55337]
[1743762299537,3.0,1800.8,1800.0,0.8265]
[1743762299732,3.18987865,1800.9,1800.0,0.8265]
[1743762299733,0.05,1800.9,1800.0,0.8265]
[1743762300074,0.05,1800.9,1800.6,5.55368]
[1743762300262,0.05,1800.9,1800.8,5.55308]
[1743762300639,1e-05,1800.9,1800.8,5.55308]
[1743762301233,1e-05,1800.9,1800.7,5.55339]
[1743762301533,1e-05,1800.9,1800.5,11.10768]
[1743762301736,1e-05,1800.9,1800.6,5.5536]
[1743762301947,1e-05,1800.9,1800.8,5.55308]
[1743762302468,1e-05,1800.9,1800.5,5.55399]
[1743762302634,8.83401,1800.9,1800.3,5.55443]
[1743762303030,0.55,1800.8,1800.0,0.801]
[1743762303248,3.09985745,1800.9,1800.0,0.801]
[1743762303476,0.55,1800.8,1800.0,0.801]
[1743762303684,0.55,1800.8,1800.3,5.55445]
[1743762303834,0.55,1800.8,1800.0,6.35633]
[1743762304039,0.09985745,1800.9,1800.8,5.55308]
[1743762304353,0.09985745,1800.9,1800.3,5.55462]
[1743762304354,1e-05,1800.9,1800.6,11.10706]
[1743762304551,1e-05,1800.9,1800.6,5.5535]
[1743762304868,1e-05,1800.9,1799.8,5.55617]
[1743762304869,5.55384,1800.6,1799.8,5.55588]
[1743762305036,0.55,1800.4,1799.7,0.7729]
[1743762305237,8.84,1800.8,1800.0,5.55555]
[1743762305440,1e-05,1800.9,1800.6,5.55341]
[1743762305662,1e-05,1800.9,1800.8,5.55308]
[1743762306182,8.82617088,1801.2,1801.0,5.55221]
[1743762306415,0.55,1801.3,1801.2,5.55185]
[1743762306580,0.55,1801.3,1801.1,11.10432]
[1743762306771,0.55,1801.3,1801.2,5.55185]
[1743762308491,0.55,1801.3,1801.1,11.10432]
[1743762308692,0.55,1801.3,1801.2,5.55185]
[1743762309004,0.55,1801.3,1801.1,5.55211]
[1743762309208,0.55,1801.3,1801.2,5.55185]
[1743762309504,0.55,1801.3,1801.1,5.55211]
[1743762309709,0.55,1801.3,1801.2,5.55185]
[1743762309877,0.55,1801.3,1800.7,0.7878]
[1743762309878,0.5619,1801.2,1800.7,5.55339]
[1743762310083,0.5619,1801.2,1800.8,5.55287]
[1743762310290,0.55,1801.1,1800.7,5.55338]
[1743762310489,0.55,1801.1,1800.5,5.55386]
[1743762310713,0.55,1801.1,1800.6,5.55341]
[1743762310914,0.55,1801.1,1800.7,5.5533]
[1743762311120,0.5619,1800.7,1799.9,5.55586]
[1743762311306,8.797,1800.6,1799.9,6.192286]
[1743762311507,3.0,1800.5,1799.4,0.8084]
[1743762311709,0.5619,1799.8,1799.2,5.55802]
[1743762312024,3.0,1799.6,1799.2,5.5579]
[1743762312320,8.811,1799.7,1799.6,5.55679]
[1743762312507,8.811,1799.7,1799.1,0.05]
[1743762312508,9.3939,1800.1,1799.8,5.55597]
[1743762312709,3.55,1800.0,1799.8,5.55611]
[1743762313028,3.0,1800.0,1799.7,5.55647]
[1743762313411,9.3939,1800.1,1799.2,0.8116]
[1743762313719,9.3939,1800.1,1800.0,5.55555]
[1743762313918,9.3939,1800.1,1799.9,5.55575]
[1743762314119,8.832,1800.1,1799.2,6.36955]
[1743762314321,3.0,1800.0,1799.5,5.55688]
[1743762314500,3.0,1800.0,1799.3,5.55771]
[1743762314706,3.0,1800.0,1799.5,5.55689]
[1743762315010,6.6219,1800.8,1799.9,0.7988]
[1743762315214,0.5619,1800.8,1800.2,5.55464]
[1743762315386,0.5619,1800.8,1799.9,0.7988]
[1743762315387,4.173384,1800.8,1800.0,5.55538]
[1743762315720,0.5619,1800.8,1800.2,5.55493]
[1743762315921,0.5619,1800.8,1800.5,5.55397]
[1743762316127,0.5619,1800.8,1800.4,5.55431]
[1743762316331,0.5619,1800.5,1799.2,0.7857]
[1743762316622,3.55,1800.3,1800.0,5.55553]
[1743762316785,3.55,1800.3,1800.1,5.55524]
[1743762316991,8.912,1800.4,1799.8,0.05555774]
[1743762317196,3.55,1800.3,1799.2,6.34357]
[1743762317387,3.0,1800.0,1799.6,5.55676]
[1743762317629,6.10604,1799.9,1799.3,5.55758]
[1743762317927,0.55,1799.6,1799.2,5.55786]
[1743762318132,0.5619,1799.4,1799.1,0.05]
[1743762318432,8.885,1799.6,1799.2,5.55796]
[1743762318609,3.5619,1799.8,1799.2,5.55778]
[1743762318811,3.5619,1799.8,1799.6,5.55675]
[1743762319123,3.09406596,1800.0,1799.6,5.55678]
[1743762319430,3.0,1800.0,1799.6,5.55667]
[1743762319607,3.0,1800.0,1799.6,5.55664]
[1743762320011,6.10587,1799.9,1799.4,5.55739]
[1743762320201,0.55,1799.9,1799.4,5.55711]
[1743762320398,0.55,1799.7,1799.2,5.55783]
[1743762320602,3.0,1799.9,1799.6,5.55652]
[1743762320832,9.4369,1800.1,1799.9,5.55572]
[1743762321033,3.13987865,1800.3,1799.3,0.7925]
[1743762321034,0.5619,1800.4,1800.1,5.55518]
[1743762321233,0.5619,1800.4,1800.2,5.55485]
[1743762321406,0.5619,1800.4,1799.8,5.55609]
[1743762321607,3.55,1800.2,1799.2,11.11556]
[1743762321808,3.55,1800.2,1799.8,5.55594]
[1743762322131,3.55,1800.2,1799.8,5.55617]
[1743762322435,3.0,1800.2,1799.6,5.55676]
[1743762322620,3.0,1800.2,1799.3,6.34996]
[1743762322621,3.0,1800.2,1799.8,5.55601]
[1743762322826,3.0,1800.2,1799.9,5.55579]
[1743762323021,3.0,1800.2,1799.8,5.55615]
[1743762323531,3.0,1800.2,1799.7,5.55647]
[1743762323708,3.0,1800.2,1799.3,0.7925]
[1743762323907,3.0,1800.2,1799.6,5.55648]
[1743762324139,0.55,1800.1,1799.8,5.55588]
[1743762324304,0.55,1800.1,1799.8,11.11194]
[1743762324505,0.55,1800.1,1799.8,5.55588]
[1743762324908,3.0,1800.2,1799.8,5.55588]
[1743762325126,0.55,1800.1,1799.7,5.55646]
[1743762325329,3.55,1799.9,1799.6,5.55662]
[1743762325527,3.355,1800.1,1799.6,5.55662]
[1743762325729,0.55,1800.0,1799.5,5.55707]
[1743762325928,8.727,1799.9,1799.5,5.55698]
[1743762326151,9.66817,1799.8,1799.1,0.05]
[1743762326317,9.66817,1799.8,1799.7,5.55648]
[1743762326318,3.5619,1799.8,1799.7,5.55648]
[1743762326523,3.5619,1799.8,1799.5,5.55704]
[1743762326828,3.5619,1799.8,1799.1,0.05]
[1743762326829,5.55802,1799.2,1799.1,0.05]
[1743762327029,27.01889865,1799.2,1799.1,0.05]
[1743762327345,27.11296461,1799.2,1799.1,0.05]
[1743762328025,21.55494461,1799.2,1799.1,0.05]
[1743762328428,27.11296461,1799.2,1799.1,0.05]
[1743762328629,27.11296461,1799.2,1798.1,0.05]
[1743762328630,6.12188,1798.6,1798.1,0.05]
[1743762328856,6.13987865,1798.2,1798.1,0.05]
[1743762329043,12.25098865,1798.2,1798.1,0.05]
[1743762329352,3.13987865,1798.4,1798.1,5.61142]
[1743762329519,8.69,1798.5,1798.1,5.61126]
[1743762329718,0.55,1798.4,1798.1,5.61126]
[1743762330068,6.68987865,1798.4,1798.1,0.05]
[1743762330273,12.25051865,1798.4,1798.1,0.05]
[1743762330570,4.1119,1798.2,1798.1,0.05]
[1743762331066,0.55,1798.2,1798.1,0.05]
[1743762331622,3.09406596,1798.3,1798.1,0.05]
[1743762331859,3.55,1798.2,1798.1,0.05]
[1743762332022,3.0,1798.2,1798.1,0.05]
[1743762332321,6.15406596,1798.3,1798.1,0.05]
[1743762332528,0.55,1798.2,1798.1,0.05]
[1743762332739,15.8415166,1798.2,1798.1,0.05]
[1743762332947,10.2804066,1798.2,1798.1,0.05]
[1743762333149,0.09406596,1798.3,1798.1,0.05]
[1743762333462,9.11111,1798.2,1798.1,0.05]
[1743762333659,3.55,1798.2,1798.1,0.05]
[1743762333956,15.82707596,1798.2,1798.1,0.05]
[1743762334159,24.51807596,1798.2,1798.1,0.05]
[1743762334654,3.0,1797.2,1796.7,6.11551]
[1743762334822,11.692,1797.2,1796.7,0.55]
[1743762335023,11.692,1797.2,1796.9,5.56498]
[1743762335222,0.55,1797.1,1797.0,5.56483]
[1743762335441,11.692,1797.2,1797.0,5.56469]
[1743762335643,14.83187865,1797.2,1796.7,6.11571]
[1743762335842,0.55,1796.9,1796.7,0.55]
[1743762336046,0.55,1797.0,1796.7,0.55]
[1743762336244,11.83187865,1797.2,1796.7,6.11575]
[1743762336446,3.55,1796.8,1796.7,0.55]
[1743762337159,15.17544,1796.8,1796.7,0.55]
[1743762337360,3.70177865,1796.2,1796.1,0.05]
[1743762337531,21.97377865,1796.2,1796.1,0.05]
[1743762337854,21.42377865,1796.2,1796.1,5.61761]
[1743762338051,11.662,1796.2,1796.1,0.05]
[1743762338360,12.212,1796.2,1796.1,0.05]
[1743762338558,0.09406596,1796.8,1796.1,0.05]
[1743762338759,0.5619,1796.9,1796.2,0.05566559]
[1743762338960,17.85987865,1796.8,1796.1,0.05]
[1743762339272,0.09406596,1796.8,1796.7,5.56575]
[1743762339558,9.19987865,1797.1,1796.1,0.05]
[1743762339723,9.19987865,1797.1,1796.4,5.56657]
[1743762339724,3.13987865,1796.8,1796.4,5.56657]
[1743762339927,6.15406596,1797.1,1796.4,5.56637]
[1743762340124,6.06,1797.1,1797.0,5.56483]
[1743762340367,6.06,1797.5,1797.3,5.56384]
[1743762340662,3.0,1797.5,1797.0,5.56465]
[1743762340970,6.11543,1796.9,1796.2,5.56716]
[1743762341149,0.55,1796.6,1796.3,5.56674]
[1743762341385,3.0,1796.5,1796.2,5.5673]
[1743762341736,3.0,1796.5,1796.3,5.56697]
[1743762342340,3.0,1796.5,1796.3,11.13375]
[1743762342547,12.34077865,1796.7,1796.1,0.05]
[1743762342748,8.639,1796.7,1796.5,5.5661]
[1743762342961,8.639,1796.7,1796.3,5.56672]
[1743762343250,8.639,1796.7,1796.1,5.61736]
[1743762343251,11.639,1796.7,1796.5,5.56635]
[1743762343563,3.0,1796.8,1796.7,5.56564]
[1743762343754,0.09978202,1796.9,1796.7,5.56575]
[1743762344063,3.13987865,1797.0,1796.5,5.56616]
[1743762344361,5.56459,1797.1,1796.8,5.56544]
[1743762344362,3.0,1797.1,1796.8,5.56544]
[1743762344563,8.56459,1797.1,1796.6,5.5659]
[1743762344764,8.5652,1796.9,1796.3,5.56699]
[1743762344944,3.0,1796.9,1796.2,0.8229]
[1743762345139,3.0,1796.9,1796.1,0.05]
[1743762345140,0.5619,1796.7,1796.1,0.05]
[1743762345341,0.55,1796.5,1796.1,0.05]
[1743762345575,0.905,1796.5,1796.1,5.61746]
[1743762345891,5.56792,1796.0,1795.3,5.56982]
[1743762346189,5.56752,1796.2,1795.5,5.5694]
[1743762346190,0.55,1795.7,1795.5,5.5694]
[1743762346400,9.07762527,1795.9,1795.5,5.56921]
[1743762346536,0.09962527,1795.9,1795.8,5.56854]
[1743762346736,0.5619,1796.1,1795.7,5.56869]
[1743762347085,3.7894407,1796.0,1795.8,5.56854]
[1743762347285,3.7894407,1796.0,1795.5,5.56933]
[1743762347567,3.0,1795.9,1795.4,5.56949]
[1743762347869,0.55,1795.8,1795.4,5.56949]
[1743762348069,0.55,1795.8,1795.2,1.00235111]
[1743762348247,0.55,1795.8,1795.4,5.56969]
[1743762348443,0.55,1795.8,1795.5,5.56946]
[1743762348644,0.09956205,1796.0,1795.7,5.56885]
[1743762348846,0.55,1795.9,1795.4,5.5695]
[1743762349372,3.13987865,1795.7,1795.2,1.00235111]
[1743762349535,9.12009,1795.3,1795.2,1.00235111]
[1743762349735,9.70949947,1795.3,1795.2,1.00235111]
[1743762350074,15.27958947,1795.3,1795.2,1.00235111]
[1743762350274,9.70949947,1795.3,1795.2,1.00235111]
[1743762350447,9.70949947,1795.3,1795.2,6.57275111]
[1743762350448,0.09949947,1795.3,1795.2,6.57275111]
[1743762350652,7.1719,1795.8,1795.2,1.00235111]
[1743762350947,6.6219,1795.8,1795.2,1.00235111]
[1743762351153,6.6219,1795.8,1795.6,5.56902]
[1743762351350,18.73777865,1796.2,1795.4,0.794]
[1743762351551,5.56767,1796.1,1795.5,5.56943]
[1743762351749,18.83721616,1796.2,1795.5,5.56943]
[1743762351954,15.69733751,1796.2,1795.7,5.5686]
[1743762352176,15.69733751,1796.2,1795.8,11.13673]
[1743762352373,15.13543751,1796.2,1795.9,5.56819]
[1743762352539,6.06,1796.2,1795.8,5.56835]
[1743762352738,11.62733,1796.2,1795.6,11.13803]
[1743762352967,0.55,1796.0,1795.6,6.682803]
[1743762353171,3.0,1796.1,1795.7,5.56865]
[1743762353366,3.13987865,1796.4,1795.4,0.794]
[1743762353551,3.13987865,1796.4,1795.9,5.5681]
[1743762353757,9.11713,1796.3,1795.7,5.56857]
[1743762354039,3.55,1796.3,1795.8,5.56854]
[1743762354260,0.55,1796.3,1795.4,0.794]
[1743762354466,6.06,1796.4,1796.1,5.56758]
[1743762354666,0.5619,1796.5,1796.1,11.13516]
[1743762354945,3.0,1796.3,1795.8,5.56841]
[1743762355254,6.06,1796.7,1796.5,5.56617]
[1743762355478,15.5559,1796.8,1796.0,5.56774]
[1743762355667,4.22019067,1797.2,1796.4,5.56667]
[1743762355668,6.6219,1797.1,1796.4,5.56667]
[1743762355845,1.07008736,1797.0,1796.5,5.56609]
[1743762356045,3.40789736,1797.0,1796.5,5.56609]
[1743762356276,3.40789736,1797.0,1795.9,6.39818]
[1743762356277,3.0,1796.6,1795.9,0.8302]
[1743762356491,3.0,1796.6,1796.2,5.56728]
[1743762356793,0.5619,1796.4,1795.9,5.56803]
[1743762356991,0.5619,1796.4,1796.1,5.56759]
[1743762357183,0.5619,1796.4,1796.0,5.5679]
[1743762357372,0.5619,1796.4,1796.0,11.13555]
[1743762357570,3.0,1796.3,1795.8,5.56839]
[1743762357893,3.0,1796.5,1796.3,5.56675]
[1743762358192,6.06,1796.6,1796.4,5.56668]
[1743762358565,6.06,1796.6,1796.4,5.56642]
[1743762359197,0.09406596,1796.9,1796.6,5.56585]
[1743762359363,3.09406596,1796.9,1796.5,5.56637]
[1743762359565,0.09406596,1796.9,1796.8,5.56544]
[1743762359795,8.65930596,1796.9,1796.3,5.56682]
[1743762360092,0.55,1796.8,1796.3,5.56697]
[1743762360262,3.55,1796.6,1796.1,5.56746]
[1743762360468,6.06,1796.8,1796.6,5.56588]
[1743762360665,0.09406596,1796.9,1796.5,5.56607]
[1743762360866,0.5619,1797.4,1796.9,5.56513]
[1743762361064,0.5619,1797.4,1796.8,5.56523]
[1743762361065,5.5638,1797.4,1796.8,5.56523]
[1743762361364,0.5619,1797.7,1796.8,5.56544]
[1743762361594,0.5619,1797.7,1797.5,5.56312]
[1743762361771,8.919,1797.9,1797.8,5.56235]
[1743762361965,0.05,1797.9,1797.7,11.12509]
[1743762362191,0.05,1797.9,1797.4,6.36293]
[1743762362366,0.05,1797.9,1797.4,0.7996]
[1743762362567,0.05,1797.9,1797.6,5.56289]
[1743762362798,0.5619,1797.7,1797.4,5.56345]
[1743762363009,0.5619,1797.7,1797.3,5.56376]
[1743762363169,0.5619,1797.7,1797.2,5.56419]
[1743762363368,0.5619,1797.7,1796.4,0.8217]
[1743762363369,3.0,1797.2,1796.4,0.8217]
[1743762363563,0.5619,1797.1,1796.6,5.56587]
[1743762363766,0.5619,1797.1,1796.4,0.8217]
[1743762363767,0.5619,1797.4,1796.7,0.05565752]
[1743762363992,0.55,1797.1,1796.7,5.56546]
[1743762364401,0.55,1797.1,1796.6,5.56588]
[1743762364590,6.11575,1796.8,1796.2,5.56706]
[1743762364789,0.55,1796.8,1796.3,5.56698]
[1743762364976,3.884,1796.8,1796.3,11.13376]
[1743762365177,0.3884,1796.7,1796.1,5.56734]
[1743762365499,3.0,1796.8,1796.2,5.56729]
[1743762365666,3.0,1796.8,1796.3,5.56681]
[1743762365875,3.0,1796.8,1796.4,5.56642]
[1743762366069,3.0,1796.8,1796.1,6.39341]
[1743762366273,9.4179,1796.9,1796.6,5.56578]
[1743762366480,0.55,1797.2,1796.4,5.56668]
[1743762366681,0.5619,1797.3,1796.9,5.56498]
[1743762366881,0.5619,1797.3,1796.6,5.56606]
[1743762366882,3.0,1797.1,1796.6,5.56606]
[1743762367087,0.55,1797.0,1796.6,5.56606]
[1743762367304,0.55,1797.0,1796.6,5.56583]
[1743762367479,3.0,1797.1,1796.7,5.56575]
[1743762367678,3.0,1797.1,1796.2,6.16]
[1743762367989,3.0,1797.1,1796.1,0.639341]
[1743762367990,3.0,1796.9,1796.5,5.56637]
[1743762368189,3.0,1796.9,1796.7,5.5655]
[1743762368369,3.0,1796.9,1796.5,5.56625]
[1743762368575,0.55,1796.9,1796.4,5.56668]
[1743762368799,3.0,1796.8,1796.4,5.56654]
[1743762368974,3.0,1796.8,1796.3,5.56697]
[1743762369177,3.0,1796.8,1796.3,11.13381]
[1743762369374,3.0,1796.8,1796.4,5.56664]
[1743762369592,0.55,1796.9,1796.2,5.56729]
[1743762369767,8.56583,1796.7,1796.1,6.3937]
[1743762369967,3.0,1796.6,1795.9,5.56804]
[1743762370174,3.55,1796.3,1795.8,5.56854]
[1743762370474,3.0,1796.2,1795.8,5.56838]
[1743762370670,3.0,1796.2,1795.8,5.56832]
[1743762371200,0.55,1796.1,1795.7,5.56855]
[1743762371702,6.11762,1796.1,1795.7,5.56855]
[1743762371902,3.0,1795.9,1795.7,5.56867]
[1743762372206,8.733,1796.0,1795.3,5.57009]
[1743762372503,9.06,1796.3,1796.2,5.5673]
[1743762372705,0.5619,1796.7,1796.3,5.56676]
[1743762372870,0.5619,1796.7,1796.4,5.56651]
[1743762373070,0.5619,1796.7,1796.2,5.56728]
[1743762373071,6.12788,1796.7,1796.2,5.56728]
[1743762373406,6.12788,1796.7,1795.8,0.8056]
[1743762373407,8.731,1796.6,1796.4,5.56646]
[1743762373570,3.0,1796.5,1796.2,5.56723]
[1743762373973,0.55,1796.4,1796.0,5.56777]
[1743762374176,0.55,1796.4,1796.0,5.56783]
[1743762374380,0.5619,1796.7,1796.0,0.7945]
[1743762374587,3.5619,1796.7,1796.2,5.56703]
[1743762374788,3.5619,1796.7,1796.0,1.430765]
[1743762374789,3.5619,1796.7,1796.0,1.48643759]
[1743762375017,0.5619,1796.7,1796.1,5.56757]
[1743762375323,6.06,1796.9,1796.6,5.56578]
[1743762375489,6.06,1796.9,1796.5,5.56621]
[1743762375809,3.0,1797.0,1796.7,5.56575]
[1743762376011,3.6955876,1797.1,1796.7,5.56572]
[1743762376417,0.5619,1797.1,1796.8,5.56544]
[1743762376601,3.5619,1797.1,1796.9,5.56513]
[1743762376802,5.56516,1796.9,1796.5,5.56608]
[1743762376995,3.0,1796.9,1796.5,11.13231]
[1743762377194,3.6955876,1797.1,1796.2,5.5673]
[1743762377517,3.5619,1797.1,1796.8,5.56518]
[1743762377730,0.5619,1797.1,1796.8,5.56518]
[1743762377886,32.775,1797.3,1796.8,5.56544]
[1743762378214,11.7986876,1797.4,1796.9,5.5649]
[1743762378417,3.1336876,1797.7,1797.3,5.5636]
[1743762378582,3.1336876,1797.7,1797.2,11.12801]
[1743762378783,3.1336876,1797.4,1797.0,5.56469]
[1743762379000,3.1336876,1797.1,1796.5,6.36856]
[1743762379202,5.56516,1796.9,1796.4,5.56667]
[1743762379408,3.0,1796.8,1796.4,11.13317]
[1743762379619,8.668,1797.0,1796.2,0.8023]
[1743762379799,0.5619,1797.3,1796.5,5.56635]
[1743762380003,0.5619,1797.6,1797.1,5.56423]
[1743762380203,0.5619,1797.6,1796.8,0.7943]
[1743762380397,3.1336876,1797.4,1797.3,5.5639]
[1743762380621,3.0,1797.5,1797.0,5.56463]
[1743762380786,3.0,1797.3,1797.0,5.56464]
[1743762380987,3.0,1797.0,1796.5,0.8079]
[1743762381314,0.5619,1796.9,1796.7,5.56564]
[1743762381530,3.0,1797.0,1796.7,5.56574]
[1743762381729,3.0,1797.0,1796.6,5.56606]
[1743762381907,3.0,1797.0,1796.6,5.56593]
[1743762382109,3.0,1796.7,1796.3,5.56678]
[1743762382334,3.0,1796.7,1795.8,0.7587]
[1743762382335,3.1336876,1796.5,1795.8,0.7587]
[1743762382546,0.55,1796.3,1795.8,5.56832]
[1743762382707,6.1336876,1796.2,1795.6,5.56892]
[1743762382907,8.659,1796.1,1795.7,5.56879]
[1743762383405,8.659,1796.1,1795.2,1.00235111]
[1743762383406,3.1336876,1795.9,1795.2,1.00235111]